[Event "Titled Tuesday Blitz August 08 Late 2023"]
[White "Pantev, Veselin"]
[Black "Ingunza Curro, Andres"]
[WhiteFideId "2901390"]
[BlackFideId "24526371"]
[WhiteElo "2617"]
[BlackElo "2442"]
[Result "1-0"]
[Round "5"]
[TimeControl "180+1"]
[Date "2023.08.08"]
[WhiteClock "0:01:19"]
[BlackClock "0:00:28"]
[Board "65"]

1. d4 {[%clk 0:02:59]}  Nf6 {[%clk 0:02:55]} 2. Nf3 {[%clk 0:02:59]}  e6 {[%clk 0:02:54]} 3. Bf4 {[%clk 0:02:59]}  b6 {[%clk 0:02:49]} 4. e3 {[%clk 0:02:59]}  Bb7 {[%clk 0:02:50]} 5. h3 {[%clk 0:02:57]}  g6 {[%clk 0:02:49]} 6. c4 {[%clk 0:02:57]}  Bg7 {[%clk 0:02:50]} 7. Nc3 {[%clk 0:02:57]}  O-O {[%clk 0:02:50]} 8. Be2 {[%clk 0:02:56]}  d6 {[%clk 0:02:50]} 9. Qc2 {[%clk 0:02:57]}  Nbd7 {[%clk 0:02:51]} 10. O-O {[%clk 0:02:56]}  Qe7 {[%clk 0:02:51]} 11. e4 {[%clk 0:02:56]}  e5 {[%clk 0:02:51]} 12. dxe5 {[%clk 0:02:56]}  dxe5 {[%clk 0:02:52]} 13. Bg5 {[%clk 0:02:56]}  h6 {[%clk 0:02:51]} 14. Nd5 {[%clk 0:02:48]}  Qd8 {[%clk 0:02:33]} 15. Be3 {[%clk 0:02:45]}  c6 {[%clk 0:02:28]} 16. Nxf6+ {[%clk 0:02:44]}  Qxf6 {[%clk 0:02:28]} 17. c5 {[%clk 0:02:33]}  Qe7 {[%clk 0:02:24]} 18. b4 {[%clk 0:02:32]}  a5 {[%clk 0:02:16]} 19. a3 {[%clk 0:02:31]}  b5 {[%clk 0:02:02]} 20. Rfd1 {[%clk 0:02:26]}  f5 {[%clk 0:02:02]} 21. Qd2 {[%clk 0:02:19]}  Nf6 {[%clk 0:01:42]} 22. exf5 {[%clk 0:02:16]}  gxf5 {[%clk 0:01:43]} 23. Bxh6 {[%clk 0:02:13]}  Rfd8 {[%clk 0:01:28]} 24. Qg5 {[%clk 0:02:13]}  Qf7 {[%clk 0:01:10]} 25. Nxe5 {[%clk 0:02:10]}  Qc7 {[%clk 0:01:10]} 26. Rd6 {[%clk 0:02:00]}  Ne4 {[%clk 0:01:05]} 27. Qxg7+ {[%clk 0:01:44]}  Qxg7 {[%clk 0:01:06]} 28. Rxd8+ {[%clk 0:01:41]}  Rxd8 {[%clk 0:01:05]} 29. Bxg7 {[%clk 0:01:41]}  Kxg7 {[%clk 0:01:06]} 30. Bf3 {[%clk 0:01:37]}  Kf6 {[%clk 0:00:57]} 31. Bxe4 {[%clk 0:01:35]}  Kxe5 {[%clk 0:00:56]} 32. Bf3 {[%clk 0:01:34]}  a4 {[%clk 0:00:54]} 33. Re1+ {[%clk 0:01:30]}  Kf6 {[%clk 0:00:54]} 34. Rd1 {[%clk 0:01:26]}  Rxd1+ {[%clk 0:00:44]} 35. Bxd1 {[%clk 0:01:25]}  Ke5 {[%clk 0:00:38]} 36. h4 {[%clk 0:01:25]}  Bc8 {[%clk 0:00:37]} 37. Bf3 {[%clk 0:01:24]}  Bd7 {[%clk 0:00:34]} 38. h5 {[%clk 0:01:24]}  Kf6 {[%clk 0:00:34]} 39. g3 {[%clk 0:01:19]}  Kg5 {[%clk 0:00:33]} 40. Kf1 {[%clk 0:01:20]}  f4 {[%clk 0:00:31]} 41. Ke2 {[%clk 0:01:19]}  fxg3 {[%clk 0:00:28]} 42. fxg3 {[%clk 0:01:19]} 1-0


[Site "https://www.chess.com"]

[Event "Titled Tuesday Blitz August 08 Late 2023"]
[White "littlepinkyboy"]
[Black "Tari, Aryan"]
[BlackFideId "1510045"]
[WhiteElo "2414"]
[BlackElo "2896"]
[Result "0-1"]
[Round "5"]
[TimeControl "180+1"]
[Date "2023.08.08"]
[WhiteClock "0:00:10"]
[BlackClock "0:00:44"]
[Board "68"]

1. e4 {[%clk 0:03:00]}  c5 {[%clk 0:02:58]} 2. Nf3 {[%clk 0:02:56]}  Nc6 {[%clk 0:02:59]} 3. d4 {[%clk 0:02:53]}  cxd4 {[%clk 0:02:59]} 4. Nxd4 {[%clk 0:02:54]}  Nf6 {[%clk 0:03:00]} 5. Nc3 {[%clk 0:02:54]}  e5 {[%clk 0:03:00]} 6. Ndb5 {[%clk 0:02:54]}  d6 {[%clk 0:03:01]} 7. Bg5 {[%clk 0:02:55]}  a6 {[%clk 0:03:01]} 8. Na3 {[%clk 0:02:55]}  b5 {[%clk 0:03:01]} 9. Bxf6 {[%clk 0:02:56]}  gxf6 {[%clk 0:03:01]} 10. Nd5 {[%clk 0:02:56]}  f5 {[%clk 0:03:00]} 11. Bd3 {[%clk 0:02:56]}  Be6 {[%clk 0:02:59]} 12. O-O {[%clk 0:02:55]}  Bxd5 {[%clk 0:02:57]} 13. exd5 {[%clk 0:02:54]}  Ne7 {[%clk 0:02:58]} 14. c4 {[%clk 0:02:55]}  Bg7 {[%clk 0:02:47]} 15. cxb5 {[%clk 0:02:54]}  e4 {[%clk 0:02:47]} 16. Be2 {[%clk 0:02:44]}  Bxb2 {[%clk 0:02:43]} 17. Nc2 {[%clk 0:02:35]}  Bxa1 {[%clk 0:02:32]} 18. Qxa1 {[%clk 0:02:36]}  Ng6 {[%clk 0:02:33]} 19. bxa6 {[%clk 0:02:32]}  O-O {[%clk 0:02:32]} 20. Ne3 {[%clk 0:02:15]}  Qg5 {[%clk 0:02:21]} 21. Kh1 {[%clk 0:01:53]}  f4 {[%clk 0:02:17]} 22. Nc2 {[%clk 0:01:49]}  Ne5 {[%clk 0:02:07]} 23. Nd4 {[%clk 0:01:46]}  Kh8 {[%clk 0:01:44]} 24. Qb1 {[%clk 0:01:42]}  f3 {[%clk 0:01:24]} 25. gxf3 {[%clk 0:01:33]}  Rg8 {[%clk 0:01:24]} 26. Rg1 {[%clk 0:01:24]}  Qd2 {[%clk 0:01:24]} 27. Rd1 {[%clk 0:01:00]}  Qg5 {[%clk 0:01:17]} 28. Rg1 {[%clk 0:00:54]}  Qh4 {[%clk 0:00:48]} 29. Qxe4 {[%clk 0:00:11]}  Qxf2 {[%clk 0:00:46]} 30. Rf1 {[%clk 0:00:10]}  Qg2# {[%clk 0:00:44]} 0-1


[Site "https://www.chess.com"]

[Event "Titled Tuesday Blitz August 08 Late 2023"]
[White "Harshavardhan G B"]
[Black "Garrido Outon, Alex"]
[WhiteFideId "25059009"]
[BlackFideId "24516279"]
[WhiteElo "2831"]
[BlackElo "2485"]
[Result "0-1"]
[Round "5"]
[TimeControl "180+1"]
[Date "2023.08.08"]
[WhiteClock "0:00:51"]
[BlackClock "0:00:54"]
[Board "69"]

1. e4 {[%clk 0:03:00]}  c6 {[%clk 0:02:58]} 2. Nf3 {[%clk 0:02:59]}  g6 {[%clk 0:02:57]} 3. d4 {[%clk 0:02:57]}  d5 {[%clk 0:02:57]} 4. exd5 {[%clk 0:02:56]}  cxd5 {[%clk 0:02:58]} 5. Ne5 {[%clk 0:02:54]}  Bg7 {[%clk 0:02:53]} 6. Bf4 {[%clk 0:02:52]}  Nf6 {[%clk 0:02:52]} 7. Bb5+ {[%clk 0:02:51]}  Nbd7 {[%clk 0:02:51]} 8. Nd2 {[%clk 0:02:49]}  O-O {[%clk 0:02:51]} 9. O-O {[%clk 0:02:43]}  Ne8 {[%clk 0:02:51]} 10. Re1 {[%clk 0:02:40]}  Nd6 {[%clk 0:02:51]} 11. Bd3 {[%clk 0:02:39]}  Nf6 {[%clk 0:02:49]} 12. c3 {[%clk 0:02:33]}  Bf5 {[%clk 0:02:49]} 13. Qe2 {[%clk 0:02:31]}  Bxd3 {[%clk 0:02:48]} 14. Qxd3 {[%clk 0:02:32]}  Nfe4 {[%clk 0:02:41]} 15. f3 {[%clk 0:02:30]}  Nxd2 {[%clk 0:02:40]} 16. Qxd2 {[%clk 0:02:30]}  Re8 {[%clk 0:02:41]} 17. Re2 {[%clk 0:02:28]}  e6 {[%clk 0:02:38]} 18. Rae1 {[%clk 0:02:25]}  b5 {[%clk 0:02:38]} 19. Nd3 {[%clk 0:02:23]}  Qb6 {[%clk 0:02:29]} 20. Bh6 {[%clk 0:02:20]}  Bf6 {[%clk 0:02:14]} 21. Qf4 {[%clk 0:02:16]}  Qd8 {[%clk 0:01:52]} 22. Qd2 {[%clk 0:02:10]}  Nf5 {[%clk 0:01:50]} 23. Bf4 {[%clk 0:02:08]}  Qb6 {[%clk 0:01:49]} 24. g4 {[%clk 0:02:04]}  Nd6 {[%clk 0:01:48]} 25. Be5 {[%clk 0:01:59]}  Bxe5 {[%clk 0:01:47]} 26. Nxe5 {[%clk 0:01:58]}  Nc4 {[%clk 0:01:46]} 27. Qf4 {[%clk 0:01:52]}  Nxe5 {[%clk 0:01:39]} 28. Qxe5 {[%clk 0:01:48]}  b4 {[%clk 0:01:30]} 29. h4 {[%clk 0:01:45]}  bxc3 {[%clk 0:01:29]} 30. bxc3 {[%clk 0:01:45]}  Qb8 {[%clk 0:01:29]} 31. h5 {[%clk 0:01:37]}  Qxe5 {[%clk 0:01:29]} 32. dxe5 {[%clk 0:01:38]}  Rec8 {[%clk 0:01:27]} 33. Rb1 {[%clk 0:01:32]}  Kg7 {[%clk 0:01:17]} 34. hxg6 {[%clk 0:01:28]}  hxg6 {[%clk 0:01:17]} 35. Rb3 {[%clk 0:01:27]}  Rc4 {[%clk 0:01:14]} 36. Kf2 {[%clk 0:01:25]}  Rac8 {[%clk 0:01:14]} 37. Re3 {[%clk 0:01:24]}  Ra4 {[%clk 0:01:04]} 38. Re2 {[%clk 0:01:24]}  Rac4 {[%clk 0:01:04]} 39. Re3 {[%clk 0:01:23]}  Ra4 {[%clk 0:01:01]} 40. a3 {[%clk 0:01:23]}  Rc6 {[%clk 0:01:00]} 41. Re2 {[%clk 0:01:05]}  Rac4 {[%clk 0:00:59]} 42. Re3 {[%clk 0:01:05]}  Rb6 {[%clk 0:00:53]} 43. Rxb6 {[%clk 0:01:03]}  axb6 {[%clk 0:00:54]} 44. Kg3 {[%clk 0:01:00]}  g5 {[%clk 0:00:54]} 45. Re2 {[%clk 0:00:56]}  Rxc3 {[%clk 0:00:54]} 46. Rb2 {[%clk 0:00:57]}  Rxa3 {[%clk 0:00:54]} 47. Rxb6 {[%clk 0:00:57]}  Re3 {[%clk 0:00:54]} 48. Rb7 {[%clk 0:00:56]}  Rxe5 {[%clk 0:00:55]} 49. Kf2 {[%clk 0:00:57]}  d4 {[%clk 0:00:54]} 50. Rd7 {[%clk 0:00:56]}  Rd5 {[%clk 0:00:53]} 51. Ra7 {[%clk 0:00:56]}  d3 {[%clk 0:00:53]} 52. Ra1 {[%clk 0:00:53]}  d2 {[%clk 0:00:53]} 53. Rd1 {[%clk 0:00:54]}  Kf6 {[%clk 0:00:53]} 54. Ke3 {[%clk 0:00:51]}  Ke5 {[%clk 0:00:54]} 0-1


[Site "https://www.chess.com"]

[Event "Titled Tuesday Blitz August 08 Late 2023"]
[White "Skvortsov, Andrei"]
[Black "Gaal, Zsoka"]
[WhiteFideId "24108600"]
[BlackFideId "777765"]
[WhiteElo "2698"]
[BlackElo "2481"]
[Result "1-0"]
[Round "5"]
[TimeControl "180+1"]
[Date "2023.08.08"]
[WhiteClock "0:01:41"]
[BlackClock "0:00:01"]
[Board "72"]

1. e4 {[%clk 0:03:00]}  e5 {[%clk 0:02:57]} 2. d4 {[%clk 0:03:01]}  exd4 {[%clk 0:02:55]} 3. Qxd4 {[%clk 0:03:01]}  Nc6 {[%clk 0:02:49]} 4. Qd3 {[%clk 0:03:02]}  d6 {[%clk 0:02:46]} 5. Nc3 {[%clk 0:03:02]}  Nf6 {[%clk 0:02:43]} 6. Nf3 {[%clk 0:03:02]}  Be7 {[%clk 0:02:43]} 7. Bf4 {[%clk 0:03:01]}  Be6 {[%clk 0:02:42]} 8. Be2 {[%clk 0:03:00]}  h6 {[%clk 0:02:40]} 9. a3 {[%clk 0:02:56]}  O-O {[%clk 0:02:40]} 10. Nd5 {[%clk 0:02:53]}  Nd7 {[%clk 0:02:36]} 11. Nxe7+ {[%clk 0:02:51]}  Qxe7 {[%clk 0:02:37]} 12. O-O {[%clk 0:02:42]}  Nc5 {[%clk 0:02:36]} 13. Qe3 {[%clk 0:02:43]}  Bg4 {[%clk 0:02:25]} 14. Nd2 {[%clk 0:02:32]}  Bxe2 {[%clk 0:02:24]} 15. Qxe2 {[%clk 0:02:32]}  a5 {[%clk 0:02:13]} 16. Rfe1 {[%clk 0:02:27]}  Rae8 {[%clk 0:02:07]} 17. f3 {[%clk 0:02:25]}  Qe6 {[%clk 0:01:57]} 18. Qc4 {[%clk 0:02:23]}  Qxc4 {[%clk 0:01:56]} 19. Nxc4 {[%clk 0:02:22]}  b5 {[%clk 0:01:30]} 20. Nxd6 {[%clk 0:02:20]}  cxd6 {[%clk 0:01:24]} 21. Bxd6 {[%clk 0:02:21]}  Ne6 {[%clk 0:01:15]} 22. Bxf8 {[%clk 0:02:19]}  Kxf8 {[%clk 0:01:16]} 23. c3 {[%clk 0:02:11]}  a4 {[%clk 0:01:00]} 24. Rad1 {[%clk 0:02:11]}  Ne5 {[%clk 0:00:39]} 25. Rd5 {[%clk 0:02:10]}  Nc7 {[%clk 0:00:40]} 26. Rc5 {[%clk 0:02:08]}  Nd3 {[%clk 0:00:26]} 27. Rxc7 {[%clk 0:02:06]}  Nxe1 {[%clk 0:00:27]} 28. Rd7 {[%clk 0:02:07]}  Re7 {[%clk 0:00:24]} 29. Rd8+ {[%clk 0:02:04]}  Re8 {[%clk 0:00:25]} 30. Rd2 {[%clk 0:02:04]}  f5 {[%clk 0:00:08]} 31. exf5 {[%clk 0:02:01]}  Kf7 {[%clk 0:00:05]} 32. Kf2 {[%clk 0:02:00]}  Kf6 {[%clk 0:00:05]} 33. g4 {[%clk 0:01:55]}  h5 {[%clk 0:00:05]} 34. h3 {[%clk 0:01:53]}  hxg4 {[%clk 0:00:06]} 35. hxg4 {[%clk 0:01:54]}  Kg5 {[%clk 0:00:03]} 36. Rd6 {[%clk 0:01:48]}  Kf4 {[%clk 0:00:03]} 37. Rd4+ {[%clk 0:01:46]}  Kg5 {[%clk 0:00:04]} 38. Rd5 {[%clk 0:01:45]}  Nc2 {[%clk 0:00:04]} 39. Rxb5 {[%clk 0:01:44]}  Ne3 {[%clk 0:00:04]} 40. Rb7 {[%clk 0:01:41]}  Kf6 {[%clk 0:00:03]} 41. Rb6+ {[%clk 0:01:40]}  Kg5 {[%clk 0:00:03]} 42. Kg3 {[%clk 0:01:40]}  Nf1+ {[%clk 0:00:03]} 43. Kg2 {[%clk 0:01:40]}  Ne3+ {[%clk 0:00:03]} 44. Kf2 {[%clk 0:01:41]}  Nd1+ {[%clk 0:00:02]} 45. Kg3 {[%clk 0:01:41]}  Re1 {[%clk 0:00:01]} 46. Rg6# {[%clk 0:01:41]} 1-0


[Site "https://www.chess.com"]

[Event "Titled Tuesday Blitz August 08 Late 2023"]
[White "Garakov, Mikhael"]
[Black "Hoang, Thi Bao Tram"]
[WhiteFideId "4169034"]
[BlackFideId "12401102"]
[WhiteElo "2470"]
[BlackElo "2680"]
[Result "1-0"]
[Round "5"]
[TimeControl "180+1"]
[Date "2023.08.08"]
[WhiteClock "0:00:20"]
[BlackClock "0:00:06"]
[Board "74"]

1. e4 {[%clk 0:03:00]}  c6 {[%clk 0:02:59]} 2. d4 {[%clk 0:02:58]}  d5 {[%clk 0:02:59]} 3. exd5 {[%clk 0:02:57]}  cxd5 {[%clk 0:03:00]} 4. c4 {[%clk 0:02:57]}  Nf6 {[%clk 0:03:00]} 5. Nc3 {[%clk 0:02:57]}  Nc6 {[%clk 0:02:59]} 6. Nf3 {[%clk 0:02:56]}  Be6 {[%clk 0:02:53]} 7. c5 {[%clk 0:02:55]}  g6 {[%clk 0:02:51]} 8. Be2 {[%clk 0:02:52]}  Bg7 {[%clk 0:02:51]} 9. O-O {[%clk 0:02:51]}  O-O {[%clk 0:02:51]} 10. Be3 {[%clk 0:02:49]}  Ne4 {[%clk 0:02:49]} 11. Rc1 {[%clk 0:02:34]}  Qd7 {[%clk 0:02:39]} 12. a3 {[%clk 0:02:20]}  Bg4 {[%clk 0:02:35]} 13. b4 {[%clk 0:01:48]}  Bxf3 {[%clk 0:02:24]} 14. Bxf3 {[%clk 0:01:48]}  f5 {[%clk 0:02:23]} 15. Ne2 {[%clk 0:01:43]}  Rad8 {[%clk 0:02:14]} 16. b5 {[%clk 0:01:40]}  Na5 {[%clk 0:02:12]} 17. Qa4 {[%clk 0:01:22]}  Nc4 {[%clk 0:02:06]} 18. Rxc4 {[%clk 0:01:11]}  dxc4 {[%clk 0:02:06]} 19. Qxc4+ {[%clk 0:01:12]}  Kh8 {[%clk 0:01:54]} 20. Nf4 {[%clk 0:01:07]}  e5 {[%clk 0:01:26]} 21. dxe5 {[%clk 0:00:57]}  Bxe5 {[%clk 0:01:25]} 22. Ne6 {[%clk 0:00:55]}  Qf7 {[%clk 0:01:21]} 23. Rc1 {[%clk 0:00:40]}  Bb2 {[%clk 0:00:27]} 24. Nxd8 {[%clk 0:00:39]}  Qxc4 {[%clk 0:00:26]} 25. Rxc4 {[%clk 0:00:39]}  Rxd8 {[%clk 0:00:27]} 26. c6 {[%clk 0:00:37]}  bxc6 {[%clk 0:00:25]} 27. bxc6 {[%clk 0:00:37]}  Nd6 {[%clk 0:00:22]} 28. Rc2 {[%clk 0:00:37]}  Be5 {[%clk 0:00:20]} 29. Bxa7 {[%clk 0:00:30]}  Ra8 {[%clk 0:00:20]} 30. Bc5 {[%clk 0:00:25]}  Rc8 {[%clk 0:00:20]} 31. a4 {[%clk 0:00:22]}  Kg7 {[%clk 0:00:19]} 32. a5 {[%clk 0:00:22]}  Nb5 {[%clk 0:00:20]} 33. a6 {[%clk 0:00:21]}  Nd4 {[%clk 0:00:20]} 34. Bxd4 {[%clk 0:00:20]}  Bxd4 {[%clk 0:00:21]} 35. c7 {[%clk 0:00:20]}  Kf6 {[%clk 0:00:18]} 36. Bb7 {[%clk 0:00:20]}  Re8 {[%clk 0:00:06]} 37. g3 {[%clk 0:00:20]} 1-0


[Site "https://www.chess.com"]

[Event "Titled Tuesday Blitz August 08 Late 2023"]
[White "ChessSG1"]
[Black "Rosen, Eric"]
[BlackFideId "2032562"]
[WhiteElo "2465"]
[BlackElo "2617"]
[Result "1-0"]
[Round "5"]
[TimeControl "180+1"]
[Date "2023.08.08"]
[WhiteClock "0:00:15"]
[BlackClock "0:00:05"]
[Board "78"]

1. Nf3 {[%clk 0:03:00]}  d5 {[%clk 0:02:59]} 2. d4 {[%clk 0:03:00]}  Nf6 {[%clk 0:03:00]} 3. c4 {[%clk 0:03:00]}  e6 {[%clk 0:03:00]} 4. g3 {[%clk 0:03:01]}  dxc4 {[%clk 0:03:00]} 5. Bg2 {[%clk 0:03:00]}  Bb4+ {[%clk 0:03:01]} 6. Nbd2 {[%clk 0:02:54]}  b5 {[%clk 0:02:59]} 7. a4 {[%clk 0:02:13]}  c6 {[%clk 0:02:59]} 8. O-O {[%clk 0:02:10]}  O-O {[%clk 0:02:59]} 9. Ne1 {[%clk 0:01:59]}  Nd5 {[%clk 0:02:32]} 10. Nc2 {[%clk 0:01:58]}  Be7 {[%clk 0:02:31]} 11. e4 {[%clk 0:01:52]}  Nf6 {[%clk 0:02:28]} 12. e5 {[%clk 0:01:53]}  Nd5 {[%clk 0:02:28]} 13. Ne4 {[%clk 0:01:53]}  Nd7 {[%clk 0:02:22]} 14. Ne3 {[%clk 0:01:50]}  Bb7 {[%clk 0:02:12]} 15. h4 {[%clk 0:01:33]}  Re8 {[%clk 0:02:10]} 16. Qg4 {[%clk 0:01:27]}  c5 {[%clk 0:01:14]} 17. Nxd5 {[%clk 0:01:12]}  Bxd5 {[%clk 0:01:12]} 18. Bh6 {[%clk 0:01:08]}  Bf8 {[%clk 0:01:12]} 19. Bg5 {[%clk 0:01:04]}  Qc7 {[%clk 0:00:47]} 20. dxc5 {[%clk 0:00:44]}  Nxe5 {[%clk 0:00:39]} 21. Qh5 {[%clk 0:00:41]}  f5 {[%clk 0:00:26]} 22. Bf4 {[%clk 0:00:17]}  Bxe4 {[%clk 0:00:20]} 23. Bxe4 {[%clk 0:00:15]}  g6 {[%clk 0:00:20]} 24. Qe2 {[%clk 0:00:12]}  fxe4 {[%clk 0:00:10]} 25. Qxe4 {[%clk 0:00:13]}  Qxc5 {[%clk 0:00:09]} 26. Bxe5 {[%clk 0:00:08]}  b4 {[%clk 0:00:09]} 27. Rac1 {[%clk 0:00:08]}  Rac8 {[%clk 0:00:08]} 28. Rfd1 {[%clk 0:00:07]}  Qc6 {[%clk 0:00:04]} 29. Qe2 {[%clk 0:00:04]}  Bg7 {[%clk 0:00:02]} 30. Bxg7 {[%clk 0:00:03]}  Kxg7 {[%clk 0:00:03]} 31. Rd4 {[%clk 0:00:04]}  c3 {[%clk 0:00:03]} 32. Qe5+ {[%clk 0:00:04]}  Kg8 {[%clk 0:00:03]} 33. bxc3 {[%clk 0:00:03]}  bxc3 {[%clk 0:00:04]} 34. Rc2 {[%clk 0:00:01]}  Re7 {[%clk 0:00:03]} 35. Rd3 {[%clk 0:00:01]}  Qxa4 {[%clk 0:00:02]} 36. Rdxc3 {[%clk 0:00:01]}  Qxc2 {[%clk 0:00:02]} 37. Rxc2 {[%clk 0:00:02]}  Rxc2 {[%clk 0:00:03]} 38. Qb8+ {[%clk 0:00:02]}  Kf7 {[%clk 0:00:02]} 39. Qf4+ {[%clk 0:00:02]}  Kg8 {[%clk 0:00:01]} 40. Qb8+ {[%clk 0:00:01]}  Kg7 {[%clk 0:00:01]} 41. Qe5+ {[%clk 0:00:02]}  Kf8 {[%clk 0:00:02]} 42. Qh8+ {[%clk 0:00:01]}  Kf7 {[%clk 0:00:02]} 43. Qxh7+ {[%clk 0:00:02]}  Ke8 {[%clk 0:00:03]} 44. Qxg6+ {[%clk 0:00:02]}  Kd8 {[%clk 0:00:02]} 45. Qxc2 {[%clk 0:00:03]}  a5 {[%clk 0:00:02]} 46. Qd2+ {[%clk 0:00:03]}  Kc8 {[%clk 0:00:02]} 47. Qxa5 {[%clk 0:00:04]}  e5 {[%clk 0:00:02]} 48. Qa8+ {[%clk 0:00:04]}  Kd7 {[%clk 0:00:02]} 49. Qb7+ {[%clk 0:00:05]}  Ke6 {[%clk 0:00:02]} 50. Qc6+ {[%clk 0:00:05]}  Kf7 {[%clk 0:00:03]} 51. Kg2 {[%clk 0:00:06]}  e4 {[%clk 0:00:02]} 52. h5 {[%clk 0:00:06]}  e3 {[%clk 0:00:02]} 53. fxe3 {[%clk 0:00:07]}  Kg8 {[%clk 0:00:02]} 54. Qg6+ {[%clk 0:00:07]}  Kf8 {[%clk 0:00:01]} 55. Qf6+ {[%clk 0:00:08]}  Rf7 {[%clk 0:00:01]} 56. Qxf7+ {[%clk 0:00:08]}  Kxf7 {[%clk 0:00:01]} 57. Kf3 {[%clk 0:00:09]}  Kg7 {[%clk 0:00:02]} 58. g4 {[%clk 0:00:10]}  Kh6 {[%clk 0:00:03]} 59. Kf4 {[%clk 0:00:10]}  Kg7 {[%clk 0:00:03]} 60. e4 {[%clk 0:00:11]}  Kf6 {[%clk 0:00:03]} 61. e5+ {[%clk 0:00:11]}  Kf7 {[%clk 0:00:04]} 62. Ke4 {[%clk 0:00:12]}  Kg7 {[%clk 0:00:05]} 63. Kd5 {[%clk 0:00:12]}  Kg8 {[%clk 0:00:06]} 64. Kd6 {[%clk 0:00:13]}  Kf8 {[%clk 0:00:07]} 65. e6 {[%clk 0:00:13]}  Ke8 {[%clk 0:00:08]} 66. h6 {[%clk 0:00:14]}  Kf8 {[%clk 0:00:08]} 67. h7 {[%clk 0:00:14]}  Kg7 {[%clk 0:00:08]} 68. e7 {[%clk 0:00:15]}  Kg6 {[%clk 0:00:07]} 69. e8=Q+ {[%clk 0:00:15]}  Kg7 {[%clk 0:00:05]} 70. h8=Q# {[%clk 0:00:15]} 1-0


[Site "https://www.chess.com"]

[Event "Titled Tuesday Blitz August 08 Late 2023"]
[White "Ozates, Tuna"]
[Black "Delorme, Axel"]
[WhiteFideId "6354521"]
[BlackFideId "632023"]
[WhiteElo "2610"]
[BlackElo "2462"]
[Result "1/2-1/2"]
[Round "5"]
[TimeControl "180+1"]
[Date "2023.08.08"]
[WhiteClock "0:00:06"]
[BlackClock "0:00:06"]
[Board "80"]

1. e4 {[%clk 0:02:53]}  c5 {[%clk 0:02:59]} 2. Nf3 {[%clk 0:02:53]}  d6 {[%clk 0:02:59]} 3. c3 {[%clk 0:02:49]}  Nf6 {[%clk 0:02:59]} 4. Bd3 {[%clk 0:02:48]}  Nc6 {[%clk 0:02:54]} 5. Bc2 {[%clk 0:02:48]}  Bg4 {[%clk 0:02:50]} 6. d3 {[%clk 0:02:44]}  e5 {[%clk 0:02:48]} 7. Nbd2 {[%clk 0:02:44]}  Be7 {[%clk 0:02:48]} 8. h3 {[%clk 0:02:44]}  Bh5 {[%clk 0:02:46]} 9. Nf1 {[%clk 0:02:44]}  h6 {[%clk 0:02:45]} 10. Ng3 {[%clk 0:02:43]}  Bg6 {[%clk 0:02:45]} 11. O-O {[%clk 0:02:44]}  d5 {[%clk 0:02:41]} 12. Qe2 {[%clk 0:02:42]}  O-O {[%clk 0:02:40]} 13. Re1 {[%clk 0:02:24]}  d4 {[%clk 0:02:36]} 14. Nh4 {[%clk 0:02:09]}  Re8 {[%clk 0:02:25]} 15. Bb3 {[%clk 0:02:05]}  Kh7 {[%clk 0:02:23]} 16. Nxg6 {[%clk 0:01:56]}  fxg6 {[%clk 0:02:24]} 17. f4 {[%clk 0:01:49]}  exf4 {[%clk 0:02:15]} 18. Bxf4 {[%clk 0:01:50]}  Bd6 {[%clk 0:02:16]} 19. Rf1 {[%clk 0:01:44]}  Na5 {[%clk 0:02:08]} 20. Bc2 {[%clk 0:01:38]}  Be5 {[%clk 0:02:06]} 21. Bxe5 {[%clk 0:01:30]}  Rxe5 {[%clk 0:02:07]} 22. Rf4 {[%clk 0:01:26]}  Qd6 {[%clk 0:01:59]} 23. Raf1 {[%clk 0:01:26]}  Rd8 {[%clk 0:02:00]} 24. Kh2 {[%clk 0:01:23]}  c4 {[%clk 0:02:00]} 25. R4f3 {[%clk 0:01:16]}  dxc3 {[%clk 0:01:55]} 26. bxc3 {[%clk 0:01:12]}  cxd3 {[%clk 0:01:55]} 27. Rxd3 {[%clk 0:01:13]}  Qe7 {[%clk 0:01:55]} 28. Rxd8 {[%clk 0:01:09]}  Qxd8 {[%clk 0:01:55]} 29. Qf2 {[%clk 0:01:05]}  Nc6 {[%clk 0:01:42]} 30. Rd1 {[%clk 0:01:05]}  Qe7 {[%clk 0:01:41]} 31. Bb3 {[%clk 0:01:04]}  Nxe4 {[%clk 0:01:35]} 32. Nxe4 {[%clk 0:01:04]}  Rxe4 {[%clk 0:01:36]} 33. Qd2 {[%clk 0:00:53]}  Re2 {[%clk 0:01:03]} 34. Qd3 {[%clk 0:00:50]}  Qe5+ {[%clk 0:00:54]} 35. Kh1 {[%clk 0:00:48]}  Qe4 {[%clk 0:00:49]} 36. Qg3 {[%clk 0:00:32]}  Re3 {[%clk 0:00:46]} 37. Qf2 {[%clk 0:00:16]}  Qe7 {[%clk 0:00:14]} 38. Rf1 {[%clk 0:00:11]}  a5 {[%clk 0:00:07]} 39. Qd2 {[%clk 0:00:09]}  Re2 {[%clk 0:00:05]} 40. Qd3 {[%clk 0:00:08]}  Re1 {[%clk 0:00:04]} 41. Bc2 {[%clk 0:00:07]}  Rxf1+ {[%clk 0:00:04]} 42. Qxf1 {[%clk 0:00:08]}  Qf6 {[%clk 0:00:04]} 43. Qd3 {[%clk 0:00:08]}  Ne5 {[%clk 0:00:03]} 44. Qe4 {[%clk 0:00:08]}  Qf1+ {[%clk 0:00:03]} 45. Kh2 {[%clk 0:00:09]}  Qf6 {[%clk 0:00:04]} 46. Bb3 {[%clk 0:00:07]}  h5 {[%clk 0:00:02]} 47. Bd1 {[%clk 0:00:06]}  Kh6 {[%clk 0:00:03]} 48. Qe3+ {[%clk 0:00:06]}  Qg5 {[%clk 0:00:03]} 49. Qe4 {[%clk 0:00:06]}  h4 {[%clk 0:00:03]} 50. Be2 {[%clk 0:00:05]}  Qg3+ {[%clk 0:00:03]} 51. Kh1 {[%clk 0:00:04]}  Qg5 {[%clk 0:00:04]} 52. Kh2 {[%clk 0:00:05]}  Qg3+ {[%clk 0:00:05]} 53. Kh1 {[%clk 0:00:05]}  Qe1+ {[%clk 0:00:06]} 54. Kh2 {[%clk 0:00:06]}  Qg3+ {[%clk 0:00:06]} 1/2-1/2


[Site "https://www.chess.com"]